Cogmind - Beta 13 @@@ ROGUE MODE // 2024.05.14 @ 11:20:44 Player: CanadianCogs Result: Destroyed by H-77 Assassin with High-powered Shotgun Performance ------------- Evolutions (7) 3500 Regions Visited (8) 1600 Robots Destroyed (39) 195 Value Destroyed (1148) 1148 Prototype IDs (0) 0 Alien Tech Used (0) 0 Bonus (720) 720 TOTAL SCORE: 7163 Bonus ------- High Alert Combat Kills 36 Follower Combat Kills 184 Entered DSFs 500 Cogmind --------- Core Integrity 0/1300 Matter 169/300 Energy 99/100 System Corruption 8% Temperature Cool (0) Movement Core (50) Location -3/Research Parts ------- > --- POWER (1) -------- (None) > --- PROPULSION (6) --- (None) > --- UTILITY (10) ----- (None) > --- WEAPON (4) ------- (None) > --- INVENTORY (5) ---- Improved Remote Datajack Peak State ------------ > --- POWER ------------ (None) > --- PROPULSION ------- VSS Leg Antigrav System > --- UTILITY ---------- Scrap Engine Transport Network Coupler Improved Kinecellerator Stasis Canceller System Shield Improved Component Analysis Suite > --- WEAPON ----------- Makeshift Shrapnel Gun Subdweller Shrapnel Launcher > --- INVENTORY -------- High-powered Shock Rifle Tesla Rifle Improved Remote Datajack Makeshift Axe [Rating: 54] Favorites ----------- Power Ion Engine Engine Ion Engine Reactor Light Antimatter Reactor Propulsion Aluminum Leg Treads Spiked Treads Leg Aluminum Leg Wheel Compact Wheel Hover Unit Antigrav System Flight Unit Xenon Bombardment Thruster Utility Transport Network Coupler Device Scrap Engine Processor Transport Network Coupler Hackware System Shield Protection Improved Heavy Armor Plating Weapon Autogun Energy Gun Medium Laser Energy Cannon Heavy Phase Cannon Ballistic Gun Autogun Ballistic Cannon Linear Accelerator Launcher Subdweller Shrapnel Launcher Special Weapon Improved Plasma Cutter Impact Weapon Makeshift Hammer Slashing Weapon Makeshift Axe Build | -11 -10 -10 -10 -7 -5 -4 -4 -3 ------- Run | Yrd Mat Min Sub Rec Fac Fac DSF Res Slots Evolved 14 | . . . . . 10 2 . 2 Power . | . . . . . . . . . Propulsion 4 | . . . . . 4 . . . Utility 8 | . . . . . 6 . . 2 Weapon 2 | . . . . . . 2 . . Parts Attached 77 | 8 15 . 5 4 27 5 3 10 Power 6 | 1 . . . 1 2 . . 2 Engine 5 | 1 . . . 1 2 . . 1 Core . | . . . . . . . . . Reactor 1 | . . . . . . . . 1 Propulsion 15 | 2 2 . . 2 3 . 2 4 Treads 2 | . . . . 2 . . . . Leg 3 | . 2 . . . 1 . . . Wheel 3 | 2 . . . . 1 . . . Hover 5 | . . . . . 1 . 2 2 Flight 2 | . . . . . . . . 2 Utility 26 | 3 7 . . . 14 . 1 1 Device 20 | 3 5 . . . 12 . . . Storage . | . . . . . . . . . Processor 4 | . 2 . . . . . 1 1 Hackware 1 | . . . . . 1 . . . Protection 1 | . . . . . 1 . . . Artifact . | . . . . . . . . . Weapon 30 | 2 6 . 5 1 8 5 . 3 Energy Gun 4 | 2 . . . . . 2 . . Energy Cannon 3 | . . . . . . 1 . 2 Ballistic Gun 10 | . 6 . 1 1 2 . . . Ballistic Cannon 1 | . . . . . . . . 1 Launcher 5 | . . . 3 . 2 . . . Special Weapon 3 | . . . . . 2 1 . . Impact Weapon 2 | . . . 1 . 1 . . . Slashing Weapon 2 | . . . . . 1 1 . . Piercing Weapon . | . . . . . . . . . Special Melee Weapon . | . . . . . . . . . Unidentified Prototypes . | . . . . . . . . . Corrupted Parts 1 | . . . . . . . . 1 System Corruption 1 | . . . . . . . . 1 Parts Lost 37 | . 2 . . 1 18 . 5 11 Power 4 | . . . . . 2 . . 2 Propulsion 13 | . 2 . . 1 4 . 2 4 Utility 10 | . . . . . 9 . . 1 Weapon 10 | . . . . . 3 . 3 4 Highest Loss Streak 7 | . 1 . . 1 5 . 3 7 To Critical Strikes 1 | . . . . . . . . 1 Average Slot Usage (%) 78 | . 92 100 100 98 45 21 15 7 Engine 10 | . 14 14 14 14 1 . . . Treads 6 | . . . . 24 2 . . . Leg 9 | . 3 28 28 2 . . . . Wheel 3 | . 17 . . . . . . . Device 7 | . 17 . . . 18 . . . Processor 17 | . 10 28 28 28 6 . 1 1 Energy Gun 2 | . 13 . . . . 10 3 . Ballistic Gun 13 | . 14 28 18 12 2 . . . Launcher 1 | . . . 5 1 1 . . . Impact Weapon 4 | . . . 4 14 3 . . . Naked Turns 89 | . . . . . 27 . . 62 Heaviest Build 35 | 11 12 11 12 17 35 23 23 18 Greatest Support 48 | 32 32 20 20 48 48 3 11 22 Greatest Overweight (x) 9 | . 3 . . 1 9 7 7 3 Average Overweight (x) . | . . . . . 1 7 3 . Largest Inventory Capacity 5 | 5 5 5 5 5 5 5 5 5 Average Capacity 5 | 5 5 5 5 5 5 5 5 5 Most Carried 5 | 5 5 5 5 5 5 4 5 5 Average Carried 3 | . 4 4 4 4 1 1 2 2 Final Capacity 5 | 5 5 5 5 5 5 5 5 5 Final Carried 5 | 1 4 5 5 5 5 1 5 1 Class Distribution -------------------- 90% | Mutant 6% | Scavenger-Mutant Dominant Class ---------------- Mutant | -10/Materials Mutant | -10/Mines Mutant | -10/Subcaves Mutant | -7/Recycling Mutant | -5/Factory Gunner | -4/Factory Mutant | -4/DSF Mutant | -3/Research Resources | -11 -10 -10 -10 -7 -5 -4 -4 -3 ----------- Run | Yrd Mat Min Sub Rec Fac Fac DSF Res Matter Collected 1195 | 280 259 91 84 77 273 . 13 118 Remotely . | . . . . . . . . . Salvage Created 1128 | 71 485 20 9 65 316 . . 162 Parts 76 | 10 39 2 . 2 8 . . 15 Haulers Intercepted 2 | . 2 . . . . . . . Recyclers Shooed 1 | . . . . . . . . 1 Parts Field Recycled . | . . . . . . . . . Retrieved Matter . | . . . . . . . . . Parts Self-Destructed 5 | . . . 5 . . . . . Prevented . | . . . . . . . . . Kills | -11 -10 -10 -10 -7 -5 -4 -4 -3 ------- Run | Yrd Mat Min Sub Rec Fac Fac DSF Res Combat Hostiles Destroyed 27 | . 12 1 1 1 7 . . 5 Melee 3 | . . . 1 . 2 . . . Guns 17 | . 11 1 . 1 4 . . . Cannons 5 | . . . . . . . . 5 Classes Destroyed 10 | 1 5 . . 1 2 . . 1 Builder 1 | . . . . . . . . 1 Tunneler 4 | 4 . . . . . . . . Hauler 2 | . 2 . . . . . . . Operator 3 | . 1 . . . 2 . . . Watcher 2 | . 2 . . . . . . . Swarmer 13 | . 6 1 1 . . . . 5 Grunt 9 | . 6 . . . 3 . . . Sentry 1 | . . . . 1 . . . . Hunter 2 | . . . . . 2 . . . Programmer 2 | . . . . . 2 . . . Best Kill Streak 4 | 4 4 1 1 1 2 . . 4 Combat Bots Only 4 | . 3 1 1 1 2 . . 4 Max Kills in Single Turn 2 | 1 2 1 1 1 1 . . 1 Gunslinging 1 | . 1 . . . . . . . Exploded . | . . . . . . . . . Melee 1 | . . . 1 . 1 . . . Uniques/NPCs Destroyed . | . . . . . . . . . Combat | -11 -10 -10 -10 -7 -5 -4 -4 -3 -------- Run | Yrd Mat Min Sub Rec Fac Fac DSF Res Hostile Shots Fired 544 | . 53 . 41 21 183 . 74 172 Missed 158 | . 13 . 19 5 32 . 23 66 Damage Taken 6811 | . 407 . 196 115 2754 . 1239 2100 Core 3288 | . 100 . 22 44 992 . 823 1307 Absorbed by Shields 187 | . . . . . 187 . . . Ignored by Resistances 45 | . . . . . 45 . . . Core Remaining (%) 40 | 100 . . . 33 . . 28 . Volleys Fired 125 | 13 53 1 5 2 40 . . 11 Largest 2 | 2 2 2 2 1 2 . . 1 Hottest 105 | 100 100 46 56 28 64 . . 105 Shots Fired 203 | 26 106 2 7 2 49 . . 11 Gun 177 | 26 106 2 2 2 39 . . . Cannon 11 | . . . . . . . . 11 Launcher 9 | . . . 5 . 4 . . . Special 6 | . . . . . 6 . . . Kinetic 106 | . 50 2 2 2 43 . . 7 Thermal 91 | 26 56 . . . 6 . . 3 Explosive 5 | . . . 5 . . . . . Electromagnetic 1 | . . . . . . . . 1 Robot Hit Streak 11 | 4 11 1 3 4 8 . . 8 Robot Miss Streak 7 | 3 3 1 2 3 7 . . 2 Penetration Max . | . . . . . . . . . Secondary Targets 2 | . 2 . . . . . . . Max Gunslinging Chain 1 | . 1 . . . . . . . Shots Hit Robots 158 | 15 71 1 5 2 54 . . 10 Core Hits 93 | 4 23 1 1 3 51 . . 10 Critical Kills 1 | . 1 . . . . . . . Critical Parts Destroyed 2 | . . . . . 2 . . . Critical Strikes 7 | 1 4 . . . 2 . . . Burn 4 | 1 3 . . . . . . . Destroy 1 | . 1 . . . . . . . Smash 2 | . . . . . 2 . . . Melee Attacks 26 | . . . 5 . 20 . . 1 Impact 19 | . . . 5 . 14 . . . Slashing 7 | . . . . . 6 . . 1 Piercing . | . . . . . . . . . Sneak Attacks . | . . . . . . . . . Combat Hostiles . | . . . . . . . . . Follow-up Attacks . | . . . . . . . . . Damage Inflicted 3573 | 214 994 16 391 33 1399 . . 526 Guns 1941 | 214 994 16 30 33 654 . . . Cannons 379 | . . . . . . . . 379 Explosions 404 | . . . 300 . 104 . . . Melee 688 | . . . 61 . 589 . . 38 Ramming 114 | . . . . . 5 . . 109 Kinetic 1545 | . 472 16 30 33 758 . . 236 Thermal 893 | 214 522 . . . 47 . . 110 Explosive 300 | . . . 300 . . . . . Electromagnetic 33 | . . . . . . . . 33 Impact 464 | . . . 61 . 403 . . . Slashing 224 | . . . . . 186 . . 38 Piercing . | . . . . . . . . . Highest Corruption 8 | . . . . . 4 . . 8 Average Corruption 3 | . . . . . 3 . . 2 Corruption Purged . | . . . . . . . . . Corruption Blocked . | . . . . . . . . . Effects 7 | . . . . . 7 . . . Message Errors 3 | . . . . . 3 . . . Heat Flow Errors 1 | . . . . . 1 . . . Parts Fused 1 | . . . . . 1 . . . Data Loss (major) 1 | . . . . . 1 . . . Alerts 1 | . . . . . 1 . . . Overload Shots . | . . . . . . . . . Overflow Damage 221 | . . . 21 . 192 . . 8 Projectiles 8 | . . . . . . . . 8 Explosions 4 | . . . . . 4 . . . Melee 209 | . . . 21 . 188 . . . Knockbacks 5 | . . . . . 1 . . 4 Impact 1 | . . . . . 1 . . . Kinetic 3 | . . . . . . . . 3 Secondary 1 | . . . . . . . . 1 Self-Inflicted Damage 99 | . . . . . 55 . . 44 Shots 2 | . . . . . 2 . . . Rammed 39 | . . . . . . . . 39 Targets Rammed 47 | . . . . . 8 . . 39 Kicked 8 | . . . . . 8 . . . Crushed . | . . . . . . . . . Highest Temperature 237 | 195 237 6 . . 183 . . 12 Average Temperature 67 | 87 63 4 . . 79 . . 9 Received Heat Transfer 877 | . 168 . 60 18 379 . 252 . Effects 1 | . 1 . . . . . . . Energy Bleed 1 | . 1 . . . . . . . Siege Activations . | . . . . . . . . . Robots Corrupted . | . . . . . . . . . Combat Hostiles . | . . . . . . . . . Parts Fried 3 | . . . . . 3 . . . Impact Corruptions 5 | . . . 1 . 4 . . . Robots Melted 2 | . 2 . . . . . . . Combat Hostiles 1 | . 1 . . . . . . . Parts Melted 5 | . 5 . . . . . . . Heat Transferred 2701 | 703 1776 . . . 111 . . 111 Parts Sabotaged . | . . . . . . . . . Parts Stolen . | . . . . . . . . . Parts Stripped . | . . . . . . . . . Power Chain Reactions . | . . . . . . . . . Alert | -11 -10 -10 -10 -7 -5 -4 -4 -3 ------- Run | Yrd Mat Min Sub Rec Fac Fac DSF Res Peak Influence 507 | 20 230 135 . 269 507 44 30 70 Initial 458 | . 13 42 . 174 458 44 30 8 Average 110 | 8 86 36 . 109 240 44 23 37 Maximum Alert Level 2 | . 1 . . 1 2 . . . Low Security (%) 86 | 100 98 100 . 77 66 100 100 100 Level 1 7 | . 1 . . 22 8 . . . Level 2 6 | . . . . . 25 . . . Level 3 . | . . . . . . . . . Level 4 . | . . . . . . . . . Level 5 . | . . . . . . . . . High Security . | . . . . . . . . . Max Security . | . . . . . . . . . Squads Dispatched 14 | . 4 . . . 4 . 1 5 Investigation 4 | . 2 . . . 1 . . 1 Extermination 1 | . . . . . 1 . . . Reinforcement 9 | . 2 . . . 2 . 1 4 Assault . | . . . . . . . . . Garrison . | . . . . . . . . . Intercept . | . . . . . . . . . Searches Triggered 1 | . . . . . 1 . . . Construction Impeded 1 | . . . . . . . . 1 Haulers Reinforced . | . . . . . . . . . Active Scanning Responses . | . . . . . . . . . Cargo Convoy Interrupts . | . . . . . . . . . Stealth | -11 -10 -10 -10 -7 -5 -4 -4 -3 --------- Run | Yrd Mat Min Sub Rec Fac Fac DSF Res Distress Signals 3 | . 2 . . . . . . 1 Communications Jammed . | . . . . . . . . . Distress Signals . | . . . . . . . . . Times Spotted 80 | . 15 1 25 2 16 . 5 16 Peak Tracking Total 10 | . 6 . 6 1 10 . 3 8 Tactical Retreats 5 | . . . 2 . . . 2 1 Traps | -11 -10 -10 -10 -7 -5 -4 -4 -3 ------- Run | Yrd Mat Min Sub Rec Fac Fac DSF Res Traps Triggered 5 | . . . . . 1 . 4 . Indirectly . | . . . . . . . . . Trap Hack Attempts . | . . . . . . . . . Triggered . | . . . . . . . . . Disarmed . | . . . . . . . . . Reprogrammed . | . . . . . . . . . Reused . | . . . . . . . . . Traps Extracted . | . . . . . . . . . Installed . | . . . . . . . . . Triggered . | . . . . . . . . . Machines | -11 -10 -10 -10 -7 -5 -4 -4 -3 ---------- Run | Yrd Mat Min Sub Rec Fac Fac DSF Res Machines Disabled 5 | . 1 1 1 . 2 . . . Max in Single Turn 1 | . 1 . . . 1 . . . Machines Repaired . | . . . . . . . . . Machines Dismantled . | . . . . . . . . . Machines Sabotaged . | . . . . . . . . . Overloaded Fab Kills . | . . . . . . . . . Hacking | -11 -10 -10 -10 -7 -5 -4 -4 -3 --------- Run | Yrd Mat Min Sub Rec Fac Fac DSF Res Machines Accessed 17 | . 4 . . 9 2 1 . 1 Terminals 10 | . 3 . . 5 1 1 . . Fabricators . | . . . . . . . . . Repair Stations . | . . . . . . . . . Recycling Units 6 | . 1 . . 4 . . . 1 Scanalyzers 1 | . . . . . 1 . . . Garrison Access . | . . . . . . . . . Total Hacks 51 | . 14 . . 29 4 1 . 3 Successful 15 | . 5 . . 7 1 1 . 1 Failed 36 | . 9 . . 22 3 . . 2 Catastrophic 9 | . 1 . . 6 1 . . 1 Database Lockouts . | . . . . . . . . . Manual 29 | . 7 . . 22 . . . . Terminals 32 | . 13 . . 15 3 1 . . Fabricators . | . . . . . . . . . Repair Stations . | . . . . . . . . . Recycling Units 18 | . 1 . . 14 . . . 3 Scanalyzers 1 | . . . . . 1 . . . Garrison Access . | . . . . . . . . . Terminal Hacks 6 | . 3 . . 2 . 1 . . Robot Schematic 4 | . 2 . . 2 . . . . Open DSF 1 | . . . . . . 1 . . Hauler Manifests 1 | . 1 . . . . . . . Fabricator Hacks . | . . . . . . . . . Repair Station Hacks . | . . . . . . . . . Recycling Unit Hacks 3 | . . . . 2 . . . 1 Report Inventory 1 | . . . . 1 . . . . Retrieve Matter 1 | . . . . . . . . 1 Retrieve Components 1 | . . . . 1 . . . . Scanalyzer 1 | . . . . . 1 . . . Insert Component 1 | . . . . . 1 . . . Garrison Access Hacks . | . . . . . . . . . Unauthorized Hacks 5 | . 2 . . 3 . . . . Terminals 1 | . 1 . . . . . . . Botnet 1 | . 1 . . . . . . . Fabricators . | . . . . . . . . . Repair Stations . | . . . . . . . . . Recycling Units 4 | . 1 . . 3 . . . . Tunnel 4 | . 1 . . 3 . . . . Scanalyzers . | . . . . . . . . . Garrison Access . | . . . . . . . . . Data Cores Recovered . | . . . . . . . . . Used . | . . . . . . . . . Hacking Detections 13 | . 3 . . 8 1 . . 1 Full Trace Events 11 | . 3 . . 6 1 . . 1 Feedback Events . | . . . . . . . . . Feedback Blocked . | . . . . . . . . . Robot Schematics Acquired 4 | . 2 . . 2 . . . . Robots Built . | . . . . . . . . . Authchips . | . . . . . . . . . Time . | . . . . . . . . . Total Robot Build Rating . | . . . . . . . . . Part Schematics Acquired . | . . . . . . . . . Parts Built . | . . . . . . . . . Authchips . | . . . . . . . . . Time . | . . . . . . . . . Total Part Build Rating . | . . . . . . . . . Parts Repaired . | . . . . . . . . . Time . | . . . . . . . . . Parts Recycled . | . . . . . . . . . Recycled Matter . | . . . . . . . . . Retrieved Matter . | . . . . . . . . . Retrieved Components 2 | . . . . 2 . . . . Parts Scanalyzed . | . . . . . . . . . Part Schematics Acquired . | . . . . . . . . . Parts Damaged . | . . . . . . . . . Bothacking | -11 -10 -10 -10 -7 -5 -4 -4 -3 ------------ Run | Yrd Mat Min Sub Rec Fac Fac DSF Res Used RIF Installer . | . . . . . . . . . Robots Hacked . | . . . . . . . . . Non-combat . | . . . . . . . . . Combat . | . . . . . . . . . Robot Hacks Applied . | . . . . . . . . . Relay Couplers Released . | . . . . . . . . . Fabnet Peak Effective % . | . . . . . . . . . Robots Rewired . | . . . . . . . . . Allies Hacked . | . . . . . . . . . Hacks Repelled . | . . . . . . . . . Allies | -11 -10 -10 -10 -7 -5 -4 -4 -3 -------- Run | Yrd Mat Min Sub Rec Fac Fac DSF Res Total Allies 6 | . . 6 . . . . . . Largest Group 6 | . . 6 5 5 . . . . Highest-Rated Group 119 | . . 119 92 92 . . . . Highest-Rated Ally 31 | . . 31 31 31 . . . . Total Orders . | . . . . . . . . . Ally Attacks 83 | . . 7 45 31 . . . . Total Damage 1207 | . . 86 593 528 . . . . Kills 9 | . . 2 5 2 . . . . Allies Corrupted . | . . . . . . . . . Allies Melted . | . . . . . . . . . Intel | -11 -10 -10 -10 -7 -5 -4 -4 -3 ------- Run | Yrd Mat Min Sub Rec Fac Fac DSF Res Robot Analysis Total . | . . . . . . . . . Derelict Logs Recovered 2 | . . 2 . . . . . . Drone Launches . | . . . . . . . . . Drone Recoveries . | . . . . . . . . . Exploration | -11 -10 -10 -10 -7 -5 -4 -4 -3 ------------- Run | Yrd Mat Min Sub Rec Fac Fac DSF Res Turns Passed 5330 | 118 948 1085 381 1164 1179 38 247 170 Spaces Moved 3102 | 64 644 772 279 656 442 9 92 144 Core 350 | 11 4 . . . 149 9 79 98 Treads 668 | . . . . 600 68 . . . Legs 1220 | . 109 772 279 56 4 . . . Wheels 675 | 53 531 . . . 91 . . . Hover 188 | . . . . . 130 . 13 45 Flight 1 | . . . . . . . . 1 Fastest Speed 50 | 50 100 120 120 120 50 400 50 50 Average Speed 130 | 91 104 120 120 159 162 400 185 60 Slowest Speed 500 | 100 200 120 120 190 500 400 400 200 Overloaded Moves . | . . . . . . . . . Propulsion Burnouts . | . . . . . . . . . Robots Hopped . | . . . . . . . . . Cave-ins Triggered . | . . . . . . . . . Exploration Rate (%) 47 | 4 65 101 20 95 8 . 78 6 Regions Visited 8 Branch Regions 3 Pre-discovered Areas 4 | . 1 . . 3 . . . . Known Exits Taken 5 | . 1 1 1 1 . 1 . . Unknown Exits Taken 2 | 1 . . . . 1 . . . Scrap Searched 1 | . . 1 . . . . . . Spaces Dug 1 | . . . . . 1 . . . Terrain Destroyed 70 | . . . 25 . 44 . . 1 Melee 1 | . . . . . 1 . . . Projectile 1 | . . . . . . . . 1 AOE 68 | . . . 25 . 43 . . . Terrain Rammed . | . . . . . . . . . Walls Destroyed . | . . . . . . . . . Machines Disabled . | . . . . . . . . . Actions | -11 -10 -10 -10 -7 -5 -4 -4 -3 --------- Run | Yrd Mat Min Sub Rec Fac Fac DSF Res Total 4146 | 96 826 929 313 773 815 13 168 213 Wait 622 | 4 88 156 14 103 250 . 5 2 Move 3094 | 63 643 771 278 655 441 8 91 144 Hop . | . . . . . . . . . Pick Up 60 | 8 15 1 2 3 18 . 7 6 Fast Attach 6 | . 2 . 1 1 2 . . . Attach 47 | 7 4 . . 1 18 4 3 10 Detach 3 | . . . . . 3 . . . Swap 24 | 1 9 . 4 2 7 1 . . Drop 27 | . 12 . 4 5 6 . . . Fire 125 | 13 53 1 5 2 40 . . 11 Melee 26 | . . . 5 . 20 . . 1 Ram 39 | . . . . . . . . 39 Kick 8 | . . . . . 8 . . . Crush . | . . . . . . . . . Escape Stasis 60 | . . . . . . . 60 . Rewire 3 | . . . . 1 . . 2 . Trap . | . . . . . . . . . Miscellaneous 2 | . . . . . 2 . . . Route ------- -11/Scrapyard -10/Materials (discovered 3 exits: *Mat x2 / *Min) -10/Mines (discovered 3 exits: *Mat x2 / *Sub) -10/Subcaves (discovered 3 exits: *Mat x2 / *Rec) -7/Recycling -5/Factory -4/Factory -4/DSF -3/Research History --------- Turn | Location | Event 21 | -11/Scrapyard | Discovered new exit (range 15) 119 | -11/Scrapyard | Entered Materials 304 | -10/Materials | Build established: Mutant 341 | -10/Materials | Discovered new exit (range 11) 359 | -10/Materials | Discovered new exit (range 14) 428 | -10/Materials | Discovered new exit (range 3) 1003 | -10/Materials | Identified exit to Materials 1065 | -10/Materials | Identified exit to Mines 1067 | -10/Materials | Entered Mines 1276 | -10/Mines | Assisted by bots powering up and referring to "LRC-V3" 1426 | -10/Mines | Received a Rocket Launcher from a helpful Derelict 1538 | -10/Mines | Received a Mining Laser from a helpful Derelict 1922 | -10/Mines | Discovered new exit (range 5) 1929 | -10/Mines | Identified exit to Subcaves 2152 | -10/Mines | Entered Subcaves 2152 | -10/Subcaves | Accompanied by 5 allies 2157 | -10/Subcaves | Led the pair of lost Derelicts to an unsafe place 2233 | -10/Subcaves | Discovered new exit (range 6) 2244 | -10/Subcaves | Identified exit to Materials 2354 | -10/Subcaves | Discovered exit to Materials (range 10) 2493 | -10/Subcaves | Discovered new exit (range 9) 2521 | -10/Subcaves | Identified exit to Recycling 2533 | -10/Subcaves | Entered Recycling 2533 | -7/Recycling | Accompanied by 5 allies 2542 | -7/Recycling | Found Scrap Engine 2571 | -7/Recycling | Core integrity fell below 50% 3066 | -7/Recycling | Discovered new exit (range 11) 3082 | -7/Recycling | Identified exit to Factory 3409 | -7/Recycling | Lost 4 allies 3697 | -7/Recycling | Entered Factory 3697 | -5/Factory | Evolved 10 slots: Propulsion x4, Utility x6 3959 | -5/Factory | Lost 3 parts (2n1u) 3997 | -5/Factory | Search patrols dispatched 4003 | -5/Factory | Build established: Scavenger-Mutant 4097 | -5/Factory | Core integrity fell below 50% 4123 | -5/Factory | Lost 5 parts (1p1n2u1w) 4352 | -5/Factory | Build established: Mutant 4602 | -5/Factory | Lost 3 parts (1p2u) 4797 | -5/Factory | Lost 4 parts (1n2u1w) 4849 | -5/Factory | Released all parts (4) 4851 | -5/Factory | Core integrity fell below 20% 4870 | -5/Factory | Lost 3 parts (2u1w) 4873 | -5/Factory | Discovered new exit (range 6) 4876 | -5/Factory | Entered another Factory area 4876 | -4/Factory | Evolved 2 slots: Weapon x2 4910 | -4/Factory | Identified exit to DSF 4914 | -4/Factory | Entered DSF 5022 | -4/DSF | Additional patrols routed to DSF 5142 | -4/DSF | Core integrity fell below 50% 5152 | -4/DSF | Discovered new exit (range 16) 5161 | -4/DSF | Entered Research 5161 | -3/Research | Evolved 2 slots: Utility x2 5176 | -3/Research | Lost 3 parts (2n1w) 5256 | -3/Research | Core integrity fell below 50% 5278 | -3/Research | Lost 7 parts (1p2n1u3w) 5309 | -3/Research | Core integrity fell below 20% 5331 | -3/Research | Destroyed by H-77 Assassin with High-powered Shotgun Last Messages --------------- 05318_ R-10 Processor collects Xenon Bombardment Thruster. 05318_ Acquired Xenon Bombardment Thruster. 05318_ U-05 Engineer builds a Door. 05321_ U-05 Engineer builds a Wall. 05322_ Acquired Corrupted Xenon Bombardment Thruster. 05323_ Integrated Corrupted Xenon Bombardment Thruster (+1). 05323_ K-01 Serf collects debris. 05323_ Penetrated by Slug. 05323_ Xenon Bombardment Thruster destroyed. 05324_ Slammed into U-05 Engineer. 05324_ Lgt. Antimatter Reactor destroyed. 05324_ ALERT: Construction progress impeded, dispatching reinforcements to local area. 05326_ Slammed into R-10 Processor. 05326_ Imp. Signal Interpreter broken. 05326_ Destabilizing: Short circuit. 05326_ Broken Imp. Signal Interpreter severed. 05326_ U-05 Engineer builds a Door. 05331_ Slug penetrates Wall. [Achievement: Just Browsing] Map ----- +----------------------------------------------------+ | #?#?????????????????????????????????????? | | #???????????????????????????????????????? | | """ #???????????????????????????????????????? | | Y" #???????????????????????????????????????? | | """ #???????????????????????????????????????? | | #???????????????????????????????????????? | | #???????????????????????????????????????? | | ##########?#?????????????????????????????????????? | | [ #### ######????????????????????????????????? | | % #????????????????????????????????? | | % #????????????????????????????????? | | ######## #????????????????????????????????? | | ###+#####????# #????????????????????????????????? | | #????# +????????????????????????????????? | | #????# #????????????????????????????????? | | #????# #????????????????????????????????? | | "" #????# #????????????????????????????????? | | "" #????# #????????????????????????????????? | | "" #????# #????????????????????????????????? | | #????# #????????????????????????????????? | | #??### ###???####+###???????????????????? | | "" #??# #???# ##########+?????????? | | "" #### x##### h ?????????? | | " + k k " h ????????? | | #""# H RR c "T ????????? | | ## # ##### @ ????????? | | ############ % #???# u ######??????????????? | | ????????######/"###???###+####???????????????????? | | ????????# [ #??????????????????????????????? | | ????????# % #??????????????????????????????? | | ????????# """" #??????????????????????????????? | | ????????# """" #??????????????????????????????? | | ????????# """" #??????????????????????????????? | | ????????# """" " ?????????????????????????????? | | ????????# # ????????????????????????????? | | ????????# # ???????????????????????????? | | ????????###########?###??????????????????????????? | | ?????????????????????????????????????????????????? | | ?????????????????????????????????????????????????? | | ?????????????????????????????????????????????????? | | ?????????????????????????????????????????????????? | | ?????????????????????????????????????????????????? | | ?????????????????????????????????????????????????? | | ?????????????????????????????????????????????????? | | ?????????????????????????????????????????????????? | | ?????????????????????????????????????????????????? | | ?????????????????????????????????????????????????? | | ?????????????????????????????????????????????????? | | ?????????????????????????????????????????????????? | | ?????????????????????????????????????????????????? | +----------------------------------------------------+ Best States ------------- Heat Dissipation 59 Energy Generation 21 Energy Capacity 290 Matter Stores 300 Matter Capacity 300 Sight Range 16 Robot Scan Range 14 Terrain Scan Range 16 Terrain Scan Density 10 ECM Strength 1 Armor Coverage 600 Resistance: TH 25 Evasion (%) 55 Recoil Reduction 2 Kinecelleration 40 Defensive Hacking 10 Item Schematics ----------------- None Robot Schematics ------------------ G-34 Mercenary | -10/Materials | Hacked S-10 Pest | -10/Materials | Hacked Y-54 Guardian | -7/Recycling | Hacked Y-45 Defender | -7/Recycling | Hacked Fabricated ------------ Nothing Alien Tech Used ----------------- None Achievements -------------- Dangerous Findings Just Browsing Streaker Challenges ------------ None Game ------ Seed MachineSurveybotTube Manual? 0 Play Time 01:02:14 Cumulative 25.9 hours Start 2024.05.14 @ 10:16:03 End 2024.05.14 @ 11:20:44 Sessions 1 Manual Loads 0 Difficulty Rogue Special Mode None Game No. 41 Rogue 41 Adventurer 0 Explorer 0 Win Type - Total 0 Types 0/0/0/0/0/0/0/0/0 Lore% 18 Gallery% 25 Achievement% 24 Wizard Run 0 Options --------- Layout 0 ASCII 0 Keyboard 0 Movement Mouse Keybinds 0 Fullscreen 2 Font 18/SmallcapsGlow Map View 38x25 Zoom Use 90% Tactical HUD 1 Map Filters NONE Filters NONE Steam 1 RUN: 0f12a770-9ec2-4262-96e3-817b20d5a6dd